Cogmind - Beta 16.1 @@@ ROGUE MODE // 2026.04.02 @ 02:14:58 Player: daxter767676 Result: Destroyed by UZ-CDG(R) with Subdweller Beam Cannon Performance ------------- Evolutions (0) 0 Regions Visited (2) 400 Robots Destroyed (19) 95 Value Destroyed (543) 543 Prototype IDs (0) 0 Alien Tech Used (0) 0 Bonus (0) 0 TOTAL SCORE: 1038 Bonus ------- None Cogmind --------- Core Integrity 0/250 Matter 300/300 Energy 100/100 System Corruption 0% Temperature Cool (9) Movement Core (150) Ox2 Location -10/Subcaves Parts ------- > --- POWER (1) -------- (None) > --- PROPULSION (2) --- (None) > --- UTILITY (2) ------ Improved Heat Sink Small Storage Unit > --- WEAPON (2) ------- Mining Claw > --- INVENTORY (8) ---- Light Ion Engine Heat Sink Improved Heat Sink Structural Scanner Targeting Computer ECM Suite Welding Torch Peak State ------------ > --- POWER ------------ Light Ion Engine > --- PROPULSION ------- Aluminum Leg Aluminum Leg > --- UTILITY ---------- Improved Heat Sink Small Storage Unit > --- WEAPON ----------- Medium Laser Small Laser > --- INVENTORY -------- Light Ion Engine Light Treads Light Treads Wheel Wheel EM Pulse Gun [Rating: 9] Favorites ----------- Power Ion Engine Engine Ion Engine Propulsion Aluminum Leg Leg Aluminum Leg Wheel Wheel Utility Small Storage Unit Device Improved Heat Sink Storage Small Storage Unit Weapon Medium Laser Energy Gun Medium Laser Slashing Weapon Mining Claw Build | -11 -10 -10 ------- Run | Yrd Mat Sub Slots Evolved . | . . . Power . | . . . Propulsion . | . . . Utility . | . . . Weapon . | . . . Parts Attached 10 | . 10 . Power 1 | . 1 . Engine 1 | . 1 . Core . | . . . Reactor . | . . . Propulsion 4 | . 4 . Treads . | . . . Leg 2 | . 2 . Wheel 2 | . 2 . Hover . | . . . Flight . | . . . Utility 3 | . 3 . Device 3 | . 3 . Storage . | . . . Processor . | . . . Hackware . | . . . Protection . | . . . Artifact . | . . . Weapon 2 | . 2 . Energy Gun 1 | . 1 . Energy Cannon . | . . . Ballistic Gun . | . . . Ballistic Cannon . | . . . Launcher . | . . . Special Weapon . | . . . Impact Weapon . | . . . Slashing Weapon 1 | . 1 . Piercing Weapon . | . . . Special Melee Weapon . | . . . Unidentified Prototypes . | . . . Parts Lost 5 | . 2 3 Power 1 | . . 1 Propulsion 2 | . 1 1 Utility . | . . . Weapon 2 | . 1 1 Highest Loss Streak 3 | . 1 3 To Critical Strikes . | . . . Average Backups 7 | 6 7 7 Power 1 | 1 1 1 Propulsion 1 | 4 1 . Utility 2 | . 2 5 Weapon 1 | 1 1 . Tool/Special . | . . . Unused Backups 16 | . 10 6 Power 2 | . 1 1 Propulsion 4 | . 4 . Utility 4 | . 1 3 Weapon 5 | . 4 1 Tool/Special 1 | . . 1 Average Slot Usage (%) 92 | . 94 67 Engine 13 | . 13 10 Leg 15 | . 17 . Wheel 9 | . 9 11 Device 12 | . 12 14 Storage 14 | . 14 14 Energy Gun 24 | . 25 11 Slashing Weapon 1 | . . 5 Peak Build Rating 9 | 6 9 8 Average Rating 8 | 6 8 7 On Entrance 6 | 6 6 8 Avg Prop Armor Cover (%) . | . . . Naked Turns . | . . . Heaviest Build 15 | 11 15 15 Greatest Support 20 | 20 20 10 Greatest Overweight (x) 2 | . 1 2 Average Overweight (x) . | . . 1 Largest Inventory Capacity 8 | 8 8 8 Average Capacity 8 | 8 8 8 Most Carried 8 | 6 8 8 Average Carried 7 | 6 7 7 Final Capacity 8 | 8 8 8 Final Carried 7 | 6 7 7 Class Distribution -------------------- 65% | Mutant 34% | Scavenger-Mutant Dominant Class ---------------- Mutant | -10/Materials Mutant | -10/Subcaves Resources | -11 -10 -10 ----------- Run | Yrd Mat Sub Matter Collected 345 | 200 125 20 Remotely . | . . . Salvage Created 637 | . 553 84 Parts 30 | . 25 5 Haulers Intercepted . | . . . Recyclers Shooed . | . . . Parts Field Recycled . | . . . Retrieved Matter . | . . . Parts Self-Destructed . | . . . Prevented . | . . . Parts Restored . | . . . Kills | -11 -10 -10 ------- Run | Yrd Mat Sub Combat Hostiles Destroyed 16 | . 14 2 Melee 1 | . . 1 Guns 15 | . 14 1 Classes Destroyed 5 | . 4 1 Worker 1 | . 1 . Watcher 2 | . 2 . Swarmer 3 | . 3 . Grunt 11 | . 11 . Subdweller 2 | . . 2 Best Kill Streak 3 | . 3 1 Combat Bots Only 3 | . 3 1 Max Kills in Single Turn 1 | . 1 1 Gunslinging . | . . . Exploded . | . . . Melee 1 | . . 1 Uniques/NPCs Destroyed . | . . . Combat | -11 -10 -10 -------- Run | Yrd Mat Sub Hostile Shots Fired 83 | . 67 16 Missed 24 | . 21 3 Hits 59 | . 46 13 Projectile 59 | . 46 13 Critical Strikes 2 | . . 2 Damage Taken 885 | . 561 324 Core 273 | . 99 174 Absorbed by Shields . | . . . Regen/Repaired (Parts) 46 | . 46 . Core Remaining (%) 100 | 100 . . Volleys Fired 89 | . 76 13 Largest 2 | . 2 1 Hottest 90 | . 90 50 Shots Fired 139 | . 126 13 Gun 139 | . 126 13 Cannon . | . . . Launcher . | . . . Special . | . . . Kinetic . | . . . Thermal 139 | . 126 13 Explosive . | . . . Electromagnetic . | . . . Robot Hit Streak 14 | . 14 7 Robot Miss Streak 5 | . 5 1 Penetration Max . | . . . Secondary Targets 1 | . 1 . Max Gunslinging Chain 1 | . 1 . Shots Hit Robots 106 | . 92 14 Core Hits 35 | . 31 4 Critical Kills . | . . . Critical Parts Destroyed . | . . . Critical Strikes 6 | . 5 1 Burn 6 | . 5 1 Melee Attacks 19 | . 16 3 Impact . | . . . Slashing 19 | . 16 3 Piercing . | . . . Sneak Attacks . | . . . Combat Hostiles . | . . . Follow-up Attacks . | . . . Damage Inflicted 1329 | . 1119 210 Guns 1257 | . 1119 138 Cannons . | . . . Explosions . | . . . Melee 72 | . . 72 Ramming . | . . . Kinetic . | . . . Thermal 1257 | . 1119 138 Explosive . | . . . Electromagnetic . | . . . Impact . | . . . Slashing 72 | . . 72 Piercing . | . . . Highest Corruption . | . . . Average Corruption . | . . . Corruption Purged . | . . . Corruption Blocked . | . . . Overload Shots . | . . . Overflow Damage . | . . . Projectiles . | . . . Explosions . | . . . Melee . | . . . Knockbacks . | . . . Impact . | . . . Kinetic . | . . . Secondary . | . . . Self-Inflicted Damage . | . . . Shots . | . . . Rammed . | . . . Targets Rammed . | . . . Kicked . | . . . Crushed . | . . . Highest Temperature 265 | . 265 235 Average Temperature 81 | . 77 139 Received Heat Transfer 951 | . 306 645 Siege Activations . | . . . Martial Activations . | . . . Shielding Activations . | . . . Robots Disrupted . | . . . Combat Hostiles . | . . . Robots Corrupted . | . . . Combat Hostiles . | . . . Parts Fried . | . . . Impact Corruptions . | . . . Robots Melted . | . . . Combat Hostiles . | . . . Parts Melted 7 | . 7 . Heat Transferred 3861 | . 3380 481 Parts Sabotaged . | . . . Parts Stolen . | . . . Parts Stripped . | . . . Power Chain Reactions . | . . . Alert | -11 -10 -10 ------- Run | Yrd Mat Sub Maximum Alert Level . | . . . Low Security (%) 100 | 100 100 . Level 1 . | . . . Level 2 . | . . . Level 3 . | . . . Level 4 . | . . . Level 5 . | . . . High Security . | . . . Max Security . | . . . Peak Influence 88 | . 88 . Initial . | . . . Average 34 | . 34 . Influence Increases 463 | . 463 . Destroy 0b10 Robot/C 280 | . 280 . Destroy 0b10 Robot/NC 15 | . 15 . Destroy Leader 64 | . 64 . Successful Hack 13 | . 13 . Select Force Hacks 60 | . 60 . Destroy Structure 1 | . 1 . Lose Combat Pursuer 30 | . 30 . Influence Decreases 463 | . 451 12 Entered New Map 7 | . . 7 Time Decay 436 | . 431 5 Lost Part 20 | . 20 . Squads Dispatched 3 | . 3 . Investigation 2 | . 2 . Extermination . | . . . Reinforcement 1 | . 1 . Assault . | . . . Garrison . | . . . Intercept . | . . . Searches Triggered . | . . . Construction Impeded . | . . . Haulers Reinforced . | . . . Active Scanning Responses . | . . . Cargo Convoy Interrupts . | . . . Stealth | -11 -10 -10 --------- Run | Yrd Mat Sub Distress Signals 1 | . 1 . Communications Jammed . | . . . Distress Signals . | . . . Times Spotted 27 | . 24 3 Peak Tracking Total 6 | . 6 2 Tactical Retreats 2 | . 2 . Traps | -11 -10 -10 ------- Run | Yrd Mat Sub Traps Triggered 1 | . 1 . Indirectly . | . . . Trap Hack Attempts . | . . . Triggered . | . . . Disarmed . | . . . Reprogrammed . | . . . Reused . | . . . Traps Extracted . | . . . Installed . | . . . Triggered . | . . . Machines | -11 -10 -10 ---------- Run | Yrd Mat Sub Machines Disabled . | . . . Max in Single Turn . | . . . Machines Repaired . | . . . Machines Dismantled . | . . . Machines Sabotaged . | . . . Overloaded Fab Kills . | . . . Hacking | -11 -10 -10 --------- Run | Yrd Mat Sub Machines Accessed 10 | . 10 . Terminals 7 | . 7 . Fabricators . | . . . Repair Stations 1 | . 1 . Recycling Units 2 | . 2 . Scanalyzers . | . . . Garrison Access . | . . . Total Hacks 25 | . 25 . Successful 16 | . 16 . Failed 9 | . 9 . Catastrophic . | . . . Database Lockouts . | . . . Manual 20 | . 20 . Terminals 21 | . 21 . Fabricators . | . . . Repair Stations 2 | . 2 . Recycling Units 2 | . 2 . Scanalyzers . | . . . Garrison Access . | . . . Terminal Hacks 1 | . 1 . Dispatch Records 1 | . 1 . Fabricator Hacks . | . . . Repair Station Hacks 2 | . 2 . Scan Component 1 | . 1 . Repair 1 | . 1 . Recycling Unit Hacks . | . . . Scanalyzer . | . . . Garrison Access Hacks . | . . . Unauthorized Hacks 13 | . 13 . Terminals 11 | . 11 . Track 1 | . 1 . Assimilate 1 | . 1 . Botnet 3 | . 3 . Operators 1 | . 1 . Skim 5 | . 5 . Fabricators . | . . . Repair Stations . | . . . Recycling Units 2 | . 2 . Tunnel 2 | . 2 . Scanalyzers . | . . . Garrison Access . | . . . Data Cores Recovered . | . . . Used . | . . . Hacking Detections 6 | . 6 . Full Trace Events . | . . . Feedback Events . | . . . Feedback Blocked . | . . . Robot Schematics Acquired . | . . . Robots Built . | . . . Authchips . | . . . Time . | . . . Total Robot Build Rating . | . . . Part Schematics Acquired . | . . . Parts Built . | . . . Authchips . | . . . Time . | . . . Total Part Build Rating . | . . . Part Studies Acquired . | . . . Parts Repaired 1 | . 1 . Time 26 | . 26 . Parts Recycled . | . . . Recycled Matter . | . . . Retrieved Matter . | . . . Retrieved Components . | . . . Parts Scanalyzed . | . . . Part Schematics Acquired . | . . . Parts Damaged . | . . . Bothacking | -11 -10 -10 ------------ Run | Yrd Mat Sub Used RIF Installer . | . . . Robots Hacked . | . . . Non-combat . | . . . Combat . | . . . Robot Hacks Applied . | . . . Relay Couplers Released . | . . . Fabnet Peak Effective % . | . . . Robots Rewired . | . . . Allies Hacked . | . . . Hacks Repelled . | . . . Allies | -11 -10 -10 -------- Run | Yrd Mat Sub Total Allies 1 | . 1 . Largest Group 1 | . 1 1 Highest-Rated Group 10 | . 10 10 Highest-Rated Ally 10 | . 10 10 Total Orders . | . . . Ally Attacks . | . . . Total Damage . | . . . Kills . | . . . Allies Corrupted . | . . . Allies Melted . | . . . Intel | -11 -10 -10 ------- Run | Yrd Mat Sub Active Infowar (turns) 427 | . 427 . Structural 427 | . 427 . Robot Analysis Total . | . . . Derelict Logs Recovered . | . . . Drone Launches . | . . . Drone Recoveries . | . . . Exploration | -11 -10 -10 ------------- Run | Yrd Mat Sub Turns Passed 1309 | 5 1204 100 Spaces Moved 873 | 5 807 61 Core 2 | . . 2 Treads . | . . . Legs 445 | 5 440 . Wheels 426 | . 367 59 Hover . | . . . Flight . | . . . Fastest Speed 80 | 120 80 80 Average Speed 102 | 120 102 96 Slowest Speed 150 | 120 120 150 Overloaded Moves . | . . . Propulsion Burnouts . | . . . Robots Hopped . | . . . Potential Cave-ins . | . . . Cave-ins Triggered . | . . . Exploration Rate (%) 35 | 2 98 6 Regions Visited 2 Branch Regions 1 Pre-discovered Areas 4 | . 4 . Known Exits Taken . | . . . Unknown Exits Taken 2 | 1 1 . Scrap Searched . | . . . Spaces Dug 3 | . 3 . Terrain Destroyed 3 | . 3 . Melee 3 | . 3 . Projectile . | . . . AOE . | . . . Terrain Rammed . | . . . Walls Destroyed . | . . . Machines Disabled . | . . . Actions | -11 -10 -10 --------- Run | Yrd Mat Sub Total 1116 | 4 1028 84 Wait 103 | . 98 5 Move 871 | 4 806 61 Hop . | . . . Pick Up 8 | . 8 . Fast Attach 3 | . 3 . Attach 4 | . 3 1 Detach 1 | . . 1 Swap 8 | . 8 . Drop 10 | . 10 . Fire 89 | . 76 13 Melee 19 | . 16 3 Ram . | . . . Kick . | . . . Crush . | . . . Escape Stasis . | . . . Rewire . | . . . Trap . | . . . Miscellaneous . | . . . Route ------- -11/Scrapyard -10/Materials (discovered 5 exits: *Mat x3 / *Min / [*Sub]) -10/Subcaves (discovered 2 exits: Mat x2) History --------- Turn | Location | Event 1 | -11/Scrapyard | Discovered new exit (range 3) 6 | -11/Scrapyard | Entered Materials 244 | -10/Materials | Discovered new exit (range 3) 341 | -10/Materials | Discovered new exit (range 10) 372 | -10/Materials | Discovered new exit (range 15) 584 | -10/Materials | Build established: Scavenger-Mutant 755 | -10/Materials | Discovered new exit (range 9) 840 | -10/Materials | Repaired Ion Engine 945 | -10/Materials | Learned Storage emergency access door positions 1008 | -10/Materials | Learned location of Mines (-10) 1018 | -10/Materials | Build established: Mutant 1138 | -10/Materials | Learned 4 Subcaves zone layouts 1160 | -10/Materials | Identified exit to Mines 1160 | -10/Materials | Identified exit to Materials 1192 | -10/Materials | Learned location of Subcaves (-10) 1206 | -10/Materials | Discovered new exit (range 3) 1210 | -10/Materials | Entered Subcaves 1210 | -10/Subcaves | Accompanied by 1 ally 1211 | -10/Subcaves | Approached by a straggling Scientist 1211 | -10/Subcaves | Identified exit to Materials 1299 | -10/Subcaves | Core integrity fell below 50% 1304 | -10/Subcaves | Core integrity fell below 20% 1310 | -10/Subcaves | Destroyed by UZ-CDG(R) with Subdweller Beam Cannon Last Messages --------------- here." Loading 2 Materials entrances... Loading 4 Subcaves zones... 01214_ WI-PYD(c): "Hey, let me tag along and I can get us both out of this nasty situation. At least I think I can... The group I got separated from was talking about a shortcut back to the UFD." 01249_ US-61P(R) destroyed. 01260_ Subatomizers dissect the Sub. Monowheel. 01260_ Acquired 7 matter. WI-PYD(c): "I think it's somewhere west of here" 01262_ Acquired 3 matter. 01284_ Ion Engine destroyed. 01284_ Critical hit (Meltdown: +280). 01294_ Wheel destroyed. 01295_ Critical hit (Meltdown: +260). 01296_ L7-ILI(R) suffers critical hit (Burn). 01297_ Med. Laser destroyed. 01299_ L7-ILI(R) destroyed. 01302_ Acquired 10 matter. Map ----- +----------------------------------------------------+ | ??????????????????????????# ##???????????????? | | ??????????????????????????# ##????????????????? | | ??????????????????????????# #?????????????????? | | ??????????????????????????## #?????????????????? | | ??????????????????????????# ##?????????????????? | | ??????????????????????????## ##?????????????????? | | ??????????????????????????#=%[ #?????????????????? | | ?????????????????????????###! ##?????????????????? | | ????????????????????????## #??????????????????? | | ????????????????????????# ###????????????????? | | ?????????????????######## % #????????????????? | | ?????????????????# #???????????????? | | ?????????????????# # # % #??????????????? | | ?????????????????# ### *=%% #??????????????? | | ?????????????????# ### % %% ##??????????????? | | ?????????????????# ### ! ##???????????????? | | ?????????????????# ## #####????????????????? | | ?????????????????## ## #????????????????????? | | ?????????????????## #### #????????????????????? | | ?????????????????# o #?# ????????????????????? | | ?????????????????### #### ???????????????????? | | ??????????????????## # ## ??????????????????? | | ??????????????????#; ## ??????????????????? | | ###????????????????# ##?## ?????????????????? | | ##???????????????## * #?????????????????????? | | #????????????????####%@R#?????????????????????? | | ###??????????????????# = #?????????????????????? | | ##????????????????????#% ##?????????????????????? | | #?????????????????????# ??????????????????????? | | #???#########?###?????# ?????????????????????? | | #??## #?# ###???# ????????????????????? | | ???# ##?# #???# % ???????????????????? | | ???# #??# #??? % ??????????????????? | | ???# ##??# ##?? % ??????????????????? | | ??## ###??## ###? ?????????????????? | | ????????????????????? ????????????????? | | ????????????????????? ????????????????? | | ???????????????????? ### ???????????????? | | ???????????????????? ###?? ?????????????????? | | ????????????????????? ###????????????????????????? | | ?????????????????????????????????????????????????? | | ?????????????????????????????????????????????????? | | ?????????????????????????????????????????????????? | | ?????????????????????????????????????????????????? | | ?????????????????????????????????????????????????? | | ?????????????????????????????????????????????????? | | ?????????????????????????????????????????????????? | | ?????????????????????????????????????????????????? | | ?????????????????????????????????????????????????? | | ?????????????????????????????????????????????????? | +----------------------------------------------------+ Best States ------------- Heat Dissipation 39 Energy Generation 10 Energy Capacity 250 Matter Stores 300 Matter Capacity 300 Sight Range 16 Terrain Scan Density 10 Evasion (%) 55 Item Schematics ----------------- None Robot Schematics ------------------ None Fabricated ------------ Nothing Repaired ---------- Ion Engine | 23% | -10/Materials Studied --------- None Alien Tech Used ----------------- None Achievements -------------- None Challenges ------------ None Game ------ Seed FocalGravjetMinigun Manual? 0 Play Time 00:20:51 Cumulative 169.5 hours Start 2026.04.02 @ 01:34:32 End 2026.04.02 @ 02:14:58 Sessions 1 Manual Loads 0 Difficulty Rogue Special Mode None Game No. 183 Rogue 181 Adventurer 2 Explorer 0 Win Type - Total 0 Types 0/0/0/0/0/0/0/0/0/0 Lore% 68 Gallery% 56 Achievement% 35 Wizard Run 0 Options --------- Layout 2 ASCII 0 Keyboard 1 Movement Numpad Keybinds 0 Fullscreen 0 Font 20/SmallcapsGlow Map View 64x51 Zoom Use 71% Tactical HUD 1 Map Filters NONE Filters NONE Steam 1 RUN: d036974e-f47a-4822-b9e2-422f013938ab